Workbook

Sheet Instructions
A1: Notes on the use and interpretation of this information
A3: General
A4: The overall summary in terms of priorities for NELMs for each area is presented in
A5: the first table (Rows 5 – 38) and should be used with the accompanying map, which
A6: shows the location of these top priorities. All top priorities are listed within this
A7: table.
A9: The following rows provide further technical detail – broken down to Priority
A10: Habitats, Section 41 Species and water quality. This technical information will be
A11: discussed as part of local validation meetings and workshops throughout July,
A12: when experienced staff will be on hand to explain this in more detail. To view the full
A13: detail please click on the + symbols that appear at the left hand side of the
A14: spreadsheet (row 41 and below): these will expand to show the full listings.
A17: NELMS targeting – summary of prioritisation
A18: Biodiversity
A19: o (priority habitat in) Designated Sites
A20: o Non-designated Priority Habitat that is:-
A21: § Not small (above defined habitat threshold area); and/ or,
A22: § Part of a network (i.e. connected); and/ or,
A23: § Has synergy with WFD/ FRM
A24: o (most s.41 species’ requirements will be met through Priority Habitat
B25: by applying ‘mosaic’ or ‘bespoke’ land management)
A26: o Plus, where s.41 species requirements cannot be met by PH, wider
B27: countryside Farm Wildlife Package e.g. farmland birds and pollinators
A29: N.B. These are the top priorities and have equal ranking in weighting the
A30: relevant datasets. Ref annex to NELMS national targeting framework paper
A31: for more detail. We took our cue from Biodiversity 2020 and followed the ‘Lawton
A32: principles’.
A34: Water Quality
A35: The water quality priorities are linked to specific water quality (Water Framework
A36: Directive) objectives in each NCA. Each NCA lists both the size in hectares and
A37: percentage of the NCA covered by a specific objective. It should be noted that the
A38: areas used can both be the area in which there is a specific WFD objective failure
A39: as well as the area of land draining to that failure. For example, if a Natura 2000
A40: designated river fails to meet its objective, it will both be the land in the direct
A41: catchment of the failure as well as land upstream contributing to the failure.
A42: In many locations the area where NELMS options would be targeted will overlap,
A43: this helps to identify the top priorities, and so the area for each individual objective
A44: cannot be added together. Each line records, where possible, the relevant name of
A45: the catchment, the designation of the protected area (e.g. Natura 2000) and the
A46: reason for failure of the objective (e.g. phosphate). For good ecological status
A47: failures this is recorded simply as rivers or lakes along with the failure type.
A49: Forestry
A50: The Government’s top priorities for forestry are to protect and improve the woods
A51: we already have, and to expand the woodland resource where new woodland can add
A52: greatest value. NELMS targeting reflects that approach by prioritising those woods
A53: not currently in active management, and focussing creation where new woods can
A54: improve habitat connectivity and benefit the water environment. This approach to
A55: creation and management is designed to help deliver the Government’s biodiversity
A56: objectives while at the same time improve water quality and reduce flood risk.

Sheet NCA Data
E2: Exmoor
D3: NCA Area (ha) | E3: 130373.2661
D4: High Priority Features | E4: Area (ha) | F4: % of NCA
B5: Legend | D5: Natura 2000 Area | E5: 16592.5 | F5: =SUM(E5/E$3)*100 -> 12.72691902
B6: High Priority Biodiversity Features | D6: Sites of Special Scientific Interest Area | E6: 23905.1 | F6: =SUM(E6/E$3)*100 -> 18.33589103
B7: High Priority Water Quality Features | D7: High Biodiversity Priority Habitat Area | E7: 22112.6 | F7: 16.96099259
B8: High Priority Historic Environment Features | D8: *Total Priority Habitat Area - Non Woodland | E8: 27445.2 | F8: 21.05124833
B9: High Priority Landscape Features | D9: Farm Wildlife Package Priority Area | E9: 1356.34 | F9: 1.040351324
B10: High Priority Climate Change Features | D10: **Section 41 Species Area | E10: 9145.27 | F10: 7.014681977
B11: High Priority Forestry Features | D11: Water Quality Priority areas | E11: 59676.50837 | F11: =SUM(E11/E$3)*100 -> 45.77357779
D12: Catchment Sensitive Farming Target Area | F12: 0
D13: High Priority Scheduled Monuments | E13: 152.31 | F13: 0.1168260983
D14: High Priority Registered Parks and Gardens | E14: 1789.81 | F14: 1.372835132
D15: High Priority Registered Battlefields | F15: 0
D16: Selected Heritage Inventory for NE (SHINE) High Signifance Features | E16: 6619.58 | F16: 5.077405973
D17: High Risk National Park | E17: 68243.8 | F17: 52.34493393
D18: High Risk Areas of Outstanding Natural Beauty | E18: 7328.66 | F18: 5.621290484
D19: High Risk Heritage Coast | E19: 13874.9 | F19: 10.64244259
D20: High Risk Environmentally Sensitive Area | E20: 79953.1 | F20: 61.32629978
D21: High Risk Landscape Priority Parks and Gardens | F21: 0
D22: High Risk Inheritance Tax Exempt Land | E22: 2415.97 | F22: 1.853117646
D23: High Risk Countryside Stewardship Special Projects | E23: 218.71 | F23: 0.1677567852
D24: High Risk Landscape Priority Traditional Orchards | E24: 68.98 | F24: 0.05290962025
D25: High Risk Nature Improvement Areas | F25: 0
D26: High Risk Heritage Lottery Fund Project Areas | E26: 13533.4 | F26: 10.38050239
D27: High Risk World Heritage Sites | F27: 0
D28: Refugia Priority areas | F28: 0
D29: Bio2020 Objective 1D Target Area for Resoration | E29: 3271.49 | F29: 2.509325798
D30: Carbon Storage Area | E30: 1130.82 | F30: 0.8673710753
D31: Carbon Sequestration Area | E31: 4.06 | F31: 0.003114135376
D32: Woodland Management Priorities | E32: 11264.7 | F32: 8.640345017
D34: High Priority Opportunity Areas
D35: Potential Habitat Creation Area (1KM zone) | E35: 130977 | F35: 100.4630811
D36: Potential Habitat Creation Area (2KM zone) | E36: 129741 | F36: 99.51503394
D37: Woodland Creation Opportunity Areas | E37: 20188.79945 | F37: 15.4853829
D38: Flood Risk Opportunities | E38: 86851.6 | F38: 66.61764532
D41: *Priority Habitat breakdown by Habitat - Non Woodland
D42: Blanket Bog | E42: 4057.02 | F42: 3.111849631
D43: Coastal and Floodplain Grazing Marsh | E43: 477.35 | F43: 0.3661410152
D44: Coastal Sand Dunes | E44: 2672.53 | F44: 2.049906457
D45: Coastal Vegetated Shingle | E45: 3.58 | F45: 0.002745961735
D46: Lowland Calcareous Grassland | E46: 4.93 | F46: 0.003781450099
D47: Lowland Dry Acid Grassland | E47: 419.78 | F47: 0.3219831892
D48: Lowland Fens | E48: 119.37 | F48: 0.09156018222
D49: Lowland Heathland | E49: 829.09 | F49: 0.6359355908
D50: Lowland Meadows | E50: 301.88 | F50: 0.2315505387
D51: Limestone Pavements | F51: 0
D52: Lowland Raised Bog | F52: 0
D53: Maritime Cliffs and Slope | E53: 1089.21 | F53: 0.8354550228
D54: Mountain Heath and Willow Scrub | F54: 0
D55: Mudflats | E55: 17.1 | F55: 0.01311618594
D56: Purple Moor Grass and Rush Pastures | E56: 528.14 | F56: 0.4050983885
D57: Reedbeds | F57: 0
D58: Saltmarsh | E58: 63.25 | F58: 0.04851454742
D59: Saline Lagoons | F59: 0
D60: Traditional Orchards | E60: 69.93 | F60: 0.05363829725
D61: Upland Calcareous Grassland | F61: 0
D62: Upland Flushes, Fens and Swamps | E62: 286.39 | F62: 0.2196692685
D63: Upland Heathland | E63: 11201.1 | F63: 8.591562009
D64: Upland Hay Meadows | F64: 0
D65: Other Habitats Included within Priority Habitat Inventory | F65: 0
D66: Fragmented Heath | E66: 134.72 | F66: 0.1033340684
D67: Grass Moorland | E67: 448.28 | F67: 0.3438434991
D68: Good Quality Semi-Improved Grassland | E68: 801.94 | F68: 0.6151107693
D69: No Main Habitat type - Secondary Type Present | E69: 3919.55 | F69: 3.006406235
D71: **Section 41 Species Breakdown by Taxon Name
D72: Adonis annua | F72: =SUM(E72/E$3)*100 -> 0
D73: Aeshna isosceles | F73: 0
D74: Agabus brunneus | F74: 0
D75: Agonum scitulum | F75: 0
D76: Agroeca cuprea | F76: 0
D77: Ajuga chamaepitys | F77: 0
D78: Ajuga pyramidalis | F78: 0
D79: Alchemilla acutiloba | F79: 0
D80: Alchemilla micans | F80: 0
D81: Alchemilla minima | F81: 0
D82: Alchemilla monticola | F82: 0
D83: Alchemilla subcrenata | F83: 0
D84: Alisma gramineum | F84: 0
D85: Alopecosa fabrilis | F85: 0
D86: Altella lucida | F86: 0
D87: Amara famelica | F87: 0
D88: Amara fusca | F88: 0
D89: Amiota variegata | F89: 0
D90: Ampedus rufipennis | F90: 0
D91: Andrena ferox | F91: 0
D92: Andrena tarsata | F92: 0
D93: Anergates atratulus | F93: 0
D94: Anisodactylus nemori | F94: 0
D95: Anisodactylus poecil | F95: 0
D96: Anisus vorticulus | F96: 0
D97: Anostirus castaneus | F97: 0
D98: Anthophora retusa | F98: 0
D99: Apium repens | F99: 0
D100: Arctosa fulvolineata | F100: 0
D101: Armeria maritima subsp. elongata | F101: 0
D102: Artemisia campestris | F102: 0
D103: Asindulum nigrum | F103: 0
D104: Asparagus prostratus | F104: 0
D105: Aspitates gilvaria s | F105: 0
D106: Astragalus danicus | F106: 0
D107: Atriplex pedunculata | F107: 0
D108: Bagous nodulosus | F108: 0
D109: Baryphyma duffeyi | F109: 0
D110: Baryphyma duffeyi* | F110: 0
D111: Bembidion humerale | F111: 0
D112: Bembidion quadripust | F112: 0
D113: Bembidion testaceum | F113: 0
D114: Bidessus unistriatus | F114: 0
D115: Blysmus compressus | F115: 0
D116: Bombus humilis | E116: 99.98024 | F116: 0.07668768529
D117: Bombus ruderarius | F117: 0
D118: Bombylius minor | F118: 0
D119: Bombylius minor* | F119: 0
D120: Brachinus sclopeta | F120: 0
D121: Bracteon argenteolum | F121: 0
D122: Bromus interruptus | F122: 0
D123: Bupleurum rotundifolium | F123: 0
D124: Bupleurum tenuissimum | F124: 0
D125: Byctiscus populi | F125: 0
D126: Calamagrostis stricta | F126: 0
D127: Callicera spinolae | F127: 0
D128: Calosoma inquisitor | F128: 0
D129: Campanula patula | F129: 0
D130: Campanula rapunculus | F130: 0
D131: Campsicnemus magius | F131: 0
D132: Carabus intricatus | F132: 0
D133: Carabus monilis | E133: 1.996052 | F133: 0.001531028607
D134: Carex depauperata | F134: =SUM(E134/E$3)*100 -> 0
D135: Carex divisa | F135: 0
D136: Carex ericetorum | F136: 0
D137: Carex maritima | F137: 0
D138: Carex vulpina | F138: 0
D139: Carum carvi | F139: 0
D140: Centaurea calcitrapa | F140: 0
D141: Centaurea cyanus | E141: 48.37177354 | F141: 0.03710252492
D142: Centromerus serratus | E142: 0.998026 | F142: 0.0007655143036
D143: Cephalanthera damasonium | F143: 0
D144: Cephalanthera longifolia | F144: 0
D145: Cephalanthera rubra | F145: 0
D146: Chamaemelum nobile | E146: 401 | F146: 0.3075783955
D147: Chenopodium urbicum | F147: 0
D148: Chenopodium vulvaria | F148: 0
D149: Chlorita viridula | F149: 0
D150: Chrysis fulgida | F150: 0
D151: Chrysolina graminis | F151: 0
D152: Chrysotoxum octomacu | F152: 0
D153: Cicendia filiformis | F153: 0
D154: Cicindela hybrida | F154: 0
D155: Cicindela sylvatica | F155: 0
D156: Clinopodium acinos | F156: 0
D157: Clinopodium menthifolium | F157: 0
D158: Cliorismia rustica | F158: 0
D159: Clubiona rosserae | F159: 0
D160: Coeloglossum viride | F160: 0
D161: Coenagrion mercurial | F161: 0
D162: Coincya wrightii | F162: 0
D163: Colletes floralis | F163: 0
D164: Colletes halophilus | F164: 0
D165: Corrigiola litoralis | F165: 0
D166: Crepis foetida | F166: 0
D167: Crepis mollis | F167: 0
D168: Cryptocephalus coryl | F168: 0
D169: Cryptocephalus decem | F169: 0
D170: Cryptocephalus nitid | F170: 0
D171: Cryptocephalus prima | F171: 0
D172: Cryptocephalus punct | F172: 0
D173: Cryptocephalus sexpu | F173: 0
D174: Curimopsis nigrita | F174: 0
D175: Cylindera germanica | F175: 0
D176: Cynoglossum germanicum | F176: 0
D177: Cyperus fuscus | F177: 0
D178: Cypripedium calceolus | F178: 0
D179: Dactylorhiza incarnata subsp. ochroleuca | F179: 0
D180: Dactylorhiza viridis | F180: 0
D181: Damasonium alisma | F181: 0
D182: Decticus verrucivoru | F182: 0
D183: Dianthus armeria | E183: 1 | F183: 0.0007670284177
D184: Dictyna pusilla | F184: 0
D185: Dipoena inornata | F185: 0
D186: Dolichopus laticola | F186: 0
D187: Dolichopus nigripes | F187: 0
D188: Dolomedes plantarius | F188: 0
D189: Donacia aquatica | F189: 0
D190: Donacia bicolora | F190: 0
D191: Doratura impudica | F191: 0
D192: Doratura impudica* | F192: 0
D193: Doros profuges | F193: 0
D194: Dorycera graminum | F194: 0
D195: Dorylomorpha clavife | F195: 0
D196: Dryopteris cristata | F196: 0
D197: Empis limata | F197: 0
D198: Epipactis sancta | F198: =SUM(E198/E$3)*100 -> 0
D199: Eresus sandaliatus | F199: 0
D200: Erigone welchi | F200: 0
D201: Eristalis cryptarum | F201: 0
D202: Eryngium campestre | E202: 2 | F202: 0.001534056835
D203: Eucera longicornis | F203: 0
D204: Euphrasia anglica | E204: 308 | F204: 0.2362447526
D205: Euphrasia officinalis subsp. anglica | E205: 300 | F205: 0.2301085253
... 1218 more rows
